Cogmind - Beta 16 @@@ ROGUE MODE // 2026.02.05 @ 15:05:04 Player: Wulphy Result: Destroyed by 96-6II(j) with Overtuned Pulse Rifle Performance ------------- Evolutions (0) 0 Regions Visited (5) 1000 Robots Destroyed (37) 185 Value Destroyed (1037) 1037 Prototype IDs (24) 480 Alien Tech Used (0) 0 Bonus (741) 741 TOTAL SCORE: 3443 Bonus ------- Follower Combat Kills 25 Registered with UFD 300 Met Optimus in HQ 500 Friendly Fire -84 Cogmind --------- Core Integrity 0/250 Matter 300/300 Energy 290/290 System Corruption 0% Temperature Cool (12) Movement Rolling (145) Ox4 Location -7/Scraptown Parts ------- > --- POWER (1) -------- Improved Deuterium Engine > --- PROPULSION (2) --- Wheel Armored Wheel > --- UTILITY (2) ------ Huge Storage Unit > --- WEAPON (2) ------- DM-GVY's Chainsaw > --- INVENTORY (25) --- MA-1KR's Cyclogen Potential Leg Armored Huge Wheel Ballwheel High-capacity Storage Unit Rocket Booster Deep Structural Scanner Spectral Analyzer Seismic Detector Authchip [Propulsion] Authchip [Device] A0-MCA's Component Scanner Improved Trap Extractor (4/6 EMP Trap) Improved Trap Extractor (0/6) Drone Bay (2/2) Multitool Peak State ------------ > --- POWER ------------ Improved Deuterium Engine > --- PROPULSION ------- Armored Wheel Armored Wheel > --- UTILITY ---------- Huge Storage Unit Seismic Detector > --- WEAPON ----------- Flak Gun DM-GVY's Chainsaw > --- INVENTORY -------- Cargo Legs Potential Leg Armored Wheel Armored Huge Wheel Ballwheel High-capacity Storage Unit Deep Structural Scanner Spectral Analyzer Medium Reactive Plating Authchip [Propulsion] Authchip [Device] A0-MCA's Component Scanner Improved Trap Extractor Improved Trap Extractor Drone Bay Barrage Gun Makeshift Shrapnel Gun Heavy Missile Launcher Multitool [Rating: 34] Favorites ----------- Power Ion Engine Engine Ion Engine Power Core Light Nuclear Core Propulsion Armored Wheel Treads Light Treads Leg Aluminum Leg Wheel Armored Wheel Utility Huge Storage Unit Device Seismic Detector Storage Huge Storage Unit Protection Makeshift Light Armor Plating Weapon Heavy Assault Rifle Ballistic Gun Heavy Assault Rifle Ballistic Cannon Advanced Assault Cannon Launcher Heavy Missile Launcher Slashing Weapon DM-GVY's Chainsaw Piercing Weapon Makeshift Spear Build | -11 -10 -10 -10 -7 -7 ------- Run | Yrd Mat Min Sub Rec Scr Slots Evolved . | . . . . . . Power . | . . . . . . Propulsion . | . . . . . . Utility . | . . . . . . Weapon . | . . . . . . Parts Attached 47 | 9 6 7 8 4 13 Power 8 | 1 1 1 . 2 3 Engine 6 | 1 . 1 . 1 3 Core 2 | . 1 . . 1 . Reactor . | . . . . . . Propulsion 16 | 4 1 4 3 . 4 Treads 4 | 1 1 2 . . . Leg 2 | 2 . . . . . Wheel 10 | 1 . 2 3 . 4 Hover . | . . . . . . Flight . | . . . . . . Utility 10 | 1 2 2 2 1 2 Device 5 | . 1 1 1 1 1 Storage 3 | 1 1 1 . . . Processor . | . . . . . . Hackware . | . . . . . . Protection 2 | . . . 1 . 1 Artifact . | . . . . . . Weapon 13 | 3 2 . 3 1 4 Energy Gun . | . . . . . . Energy Cannon . | . . . . . . Ballistic Gun 9 | 3 2 . 2 . 2 Ballistic Cannon 1 | . . . . 1 . Launcher 1 | . . . . . 1 Special Weapon . | . . . . . . Impact Weapon . | . . . . . . Slashing Weapon 1 | . . . . . 1 Piercing Weapon 1 | . . . 1 . . Special Melee Weapon . | . . . . . . Unidentified Prototypes . | . . . . . . Corrupted Parts 1 | . . . 1 . . System Corruption 10 | . . . 10 . . Parts Lost 9 | . . 1 . . 8 Power 2 | . . 1 . . 1 Propulsion 2 | . . . . . 2 Utility 1 | . . . . . 1 Weapon 4 | . . . . . 4 Highest Loss Streak 4 | . . 1 . . 4 To Critical Strikes . | . . . . . . Average Backups 17 | 3 7 10 19 23 19 Power . | . 1 . . . . Propulsion 6 | 2 5 7 7 8 5 Utility 6 | . . 1 6 7 10 Weapon 3 | . 1 2 4 5 3 Tool/Special . | . . . . . . Unused Backups 39 | . 3 . 7 1 28 Power 3 | . 1 . 1 . 1 Propulsion 9 | . 2 . 1 . 6 Utility 18 | . . . 4 . 14 Weapon 8 | . . . 1 1 6 Tool/Special 1 | . . . . . 1 Average Slot Usage (%) 95 | . 97 99 100 99 88 Engine 12 | . 6 6 14 13 13 Core 1 | . 7 7 . . . Treads 2 | . 6 12 . . . Leg 1 | . 21 . . . . Wheel 23 | . . 15 27 28 27 Device 12 | . 11 14 9 13 13 Storage 13 | . 14 14 14 14 13 Protection 1 | . . . 4 . . Ballistic Gun 16 | . 28 28 22 9 7 Ballistic Cannon 1 | . . . . 13 . Piercing Weapon 5 | . . . 5 4 9 Peak Build Rating 34 | 6 12 15 20 22 34 Average Rating 17 | 4 8 13 16 20 21 On Entrance 11 | . 6 12 14 17 18 Avg Prop Armor Cover (%) . | . . . . . . Naked Turns . | . . . . . . Heaviest Build 116 | 14 22 92 95 95 116 Greatest Support 40 | 20 40 40 24 22 24 Greatest Overweight (x) 7 | . . 3 7 4 5 Average Overweight (x) 2 | . . 1 3 3 3 Largest Inventory Capacity 25 | 8 10 25 25 25 25 Average Capacity 22 | 7 8 18 25 25 24 Most Carried 25 | 6 10 18 25 25 25 Average Carried 20 | 3 7 13 23 24 21 Final Capacity 25 | 8 10 25 25 25 25 Final Carried 25 | 6 10 18 25 25 20 Class Distribution -------------------- 90% | Mutant 8% | Scavenger-Mutant Dominant Class ---------------- Mutant | -10/Materials Mutant | -10/Mines Mutant | -10/Subcaves Mutant | -7/Recycling Mutant | -7/Scraptown Resources | -11 -10 -10 -10 -7 -7 ----------- Run | Yrd Mat Min Sub Rec Scr Matter Collected 2055 | 208 360 237 516 213 521 Remotely . | . . . . . . Salvage Created 1374 | . 291 238 292 42 511 Parts 91 | . 23 15 21 2 30 Haulers Intercepted 1 | . 1 . . . . Recyclers Shooed 6 | . 6 . . . . Parts Field Recycled . | . . . . . . Retrieved Matter . | . . . . . . Parts Self-Destructed 7 | . . . 7 . . Prevented . | . . . . . . Parts Restored . | . . . . . . Kills | -11 -10 -10 -10 -7 -7 ------- Run | Yrd Mat Min Sub Rec Scr Combat Hostiles Destroyed 30 | . 8 6 4 1 11 Melee 1 | . . . . . 1 Guns 23 | . 8 6 4 . 5 Cannons 1 | . . . . 1 . AOE 5 | . . . . . 5 Classes Destroyed 13 | . 4 1 3 1 4 Tunneler 3 | . . 3 . . . Hauler 1 | . 1 . . . . Recycler 1 | . 1 . . . . Turret 2 | . . . 2 . . Swarmer 10 | . 6 3 1 . . Grunt 5 | . 2 3 . . . Sentry 1 | . . . . 1 . Artisan 1 | . . . 1 . . Subdweller 3 | . . . 3 . . Federalist 2 | . . . . . 2 Explorer 2 | . . . . . 2 Guru 1 | . . . . . 1 Scrapper 6 | . . . . . 6 Best Kill Streak 8 | . 4 3 1 1 8 Combat Bots Only 8 | . 3 3 1 1 8 Max Kills in Single Turn 3 | . 1 2 1 1 3 Gunslinging 1 | . . 1 . . . Exploded 3 | . . . . . 3 Melee 1 | . . . . . 1 Uniques/NPCs Destroyed . | . . . . . . Combat | -11 -10 -10 -10 -7 -7 -------- Run | Yrd Mat Min Sub Rec Scr Hostile Shots Fired 260 | . 32 33 63 27 105 Missed 81 | . 8 9 30 10 24 Hits 179 | . 24 24 33 17 81 Melee 2 | . . . . . 2 Projectile 177 | . 24 24 33 17 79 Critical Strikes 3 | . . . . . 3 Damage Taken 2008 | . 235 299 273 135 1066 Core 250 | . 31 10 48 27 134 Absorbed by Shields . | . . . . . . Ignored by Resistances 75 | . . . . . 75 Core Remaining (%) 100 | 100 . . . . . Volleys Fired 135 | . 38 22 40 4 31 Largest 2 | . 2 2 2 2 2 Hottest 64 | . 40 46 47 64 56 Shots Fired 263 | . 76 44 81 8 54 Gun 253 | . 76 44 81 4 48 Cannon 4 | . . . . 4 . Launcher 6 | . . . . . 6 Special . | . . . . . . Kinetic 257 | . 76 44 81 8 48 Thermal . | . . . . . . Explosive 6 | . . . . . 6 Electromagnetic . | . . . . . . Robot Hit Streak 21 | . 8 11 21 6 7 Robot Miss Streak 8 | . 3 3 8 2 6 Penetration Max . | . . . . . . Secondary Targets 3 | . 1 2 . . . Max Gunslinging Chain 1 | . 1 1 . . . Shots Hit Robots 186 | . 47 33 57 6 43 Core Hits 81 | . 15 12 20 3 31 Critical Kills 1 | . 1 . . . . Critical Parts Destroyed 1 | . . 1 . . . Critical Strikes 4 | . 1 1 2 . . Destroy 4 | . 1 1 2 . . Melee Attacks 27 | . . . 22 . 5 Impact . | . . . . . . Slashing 5 | . . . . . 5 Piercing 22 | . . . 22 . . Sneak Attacks 1 | . . . 1 . . Combat Hostiles . | . . . . . . Follow-up Attacks . | . . . . . . Damage Inflicted 3466 | . 569 511 994 146 1246 Guns 2747 | . 569 511 930 65 672 Cannons 81 | . . . . 81 . Explosions 532 | . . . . . 532 Melee 106 | . . . 64 . 42 Ramming . | . . . . . . Kinetic 2828 | . 569 511 930 146 672 Thermal . | . . . . . . Explosive 532 | . . . . . 532 Electromagnetic . | . . . . . . Impact . | . . . . . . Slashing 42 | . . . . . 42 Piercing 64 | . . . 64 . . Highest Corruption 10 | . . . 10 10 . Average Corruption 10 | . . . 10 10 . Corruption Purged . | . . . . . . Corruption Blocked . | . . . . . . Effects 52 | . . . 15 37 . Message Errors 15 | . . . 5 10 . Matter Fused 11 | . . . 2 9 . Heat Flow Errors 2 | . . . . 2 . Energy Discharges 6 | . . . 2 4 . Parts Fused 4 | . . . 1 3 . Data Loss (minor) 7 | . . . 2 5 . Data Loss (major) 4 | . . . . 4 . Misfires 2 | . . . 2 . . Alerts 1 | . . . 1 . . Overload Shots . | . . . . . . Overflow Damage 38 | . . . . . 38 Projectiles . | . . . . . . Explosions 38 | . . . . . 38 Melee . | . . . . . . Knockbacks . | . . . . . . Impact . | . . . . . . Kinetic . | . . . . . . Secondary . | . . . . . . Self-Inflicted Damage 46 | . . . . . 46 Shots 1 | . . . . . 1 Rammed . | . . . . . . Targets Rammed . | . . . . . . Kicked . | . . . . . . Crushed . | . . . . . . Highest Temperature 220 | . 2 6 . 220 210 Average Temperature 69 | . 2 4 . 87 70 Received Heat Transfer 894 | . 63 144 150 42 495 Siege Activations . | . . . . . . Martial Activations . | . . . . . . Shielding Activations . | . . . . . . Robots Disrupted . | . . . . . . Combat Hostiles . | . . . . . . Robots Corrupted . | . . . . . . Combat Hostiles . | . . . . . . Parts Fried . | . . . . . . Impact Corruptions . | . . . . . . Robots Melted . | . . . . . . Combat Hostiles . | . . . . . . Parts Melted 6 | . . . . . 6 Heat Transferred . | . . . . . . Parts Sabotaged . | . . . . . . Parts Stolen . | . . . . . . Parts Stripped . | . . . . . . Power Chain Reactions . | . . . . . . Alert | -11 -10 -10 -10 -7 -7 ------- Run | Yrd Mat Min Sub Rec Scr Maximum Alert Level . | . . . . . . Low Security (%) 100 | 100 100 100 . 100 . Level 1 . | . . . . . . Level 2 . | . . . . . . Level 3 . | . . . . . . Level 4 . | . . . . . . Level 5 . | . . . . . . High Security . | . . . . . . Max Security . | . . . . . . Peak Influence 104 | . 104 70 . 74 . Initial 8 | . . 8 . . . Average 18 | . 45 7 . 14 . Influence Increases 734 | . 244 176 105 209 . Destroy 0b10 Robot/C 380 | . 160 140 60 20 . Destroy 0b10 Robot/NC 25 | . 10 15 . . . Destroy Leader 52 | . 32 20 . . . Allied During Kill 1 | . . 1 . . . Successful Hack 32 | . 25 . . 7 . Select Force Hacks 180 | . . . . 180 . Destroy Structure 4 | . 2 . . 2 . Lose Combat Pursuer 60 | . 15 . 45 . . Influence Decreases 734 | . 221 199 105 209 . Entered New Map 15 | . . 15 . . . Time Decay 689 | . 221 154 105 209 . Lost Part 10 | . . 10 . . . Lost Ally 20 | . . 20 . . . Squads Dispatched 2 | . 1 1 . . . Investigation 1 | . 1 . . . . Extermination . | . . . . . . Reinforcement . | . . . . . . Assault 1 | . . 1 . . . Garrison . | . . . . . . Intercept . | . . . . . . Searches Triggered . | . . . . . . Construction Impeded . | . . . . . . Haulers Reinforced . | . . . . . . Active Scanning Responses . | . . . . . . Cargo Convoy Interrupts . | . . . . . . Stealth | -11 -10 -10 -10 -7 -7 --------- Run | Yrd Mat Min Sub Rec Scr Distress Signals 1 | . 1 . . . . Communications Jammed . | . . . . . . Distress Signals . | . . . . . . Times Spotted 58 | . 15 7 8 1 27 Peak Tracking Total 7 | . 4 4 2 1 7 Tactical Retreats 3 | . 1 . 2 . . Traps | -11 -10 -10 -10 -7 -7 ------- Run | Yrd Mat Min Sub Rec Scr Traps Triggered 1 | . 1 . . . . Indirectly . | . . . . . . Trap Hack Attempts . | . . . . . . Triggered . | . . . . . . Disarmed . | . . . . . . Reprogrammed . | . . . . . . Reused . | . . . . . . Traps Extracted . | . . . . . . Installed 1 | . . 1 . . . Triggered . | . . . . . . Most Traps Carried 5 | . . 5 4 4 4 Machines | -11 -10 -10 -10 -7 -7 ---------- Run | Yrd Mat Min Sub Rec Scr Machines Disabled 7 | . . . 2 . 5 Max in Single Turn 1 | . . . 1 . 1 Machines Repaired . | . . . . . . Machines Dismantled . | . . . . . . Machines Sabotaged . | . . . . . . Overloaded Fab Kills . | . . . . . . Hacking | -11 -10 -10 -10 -7 -7 --------- Run | Yrd Mat Min Sub Rec Scr Machines Accessed 19 | . 4 1 1 10 3 Terminals 8 | . 4 . . 4 . Fabricators . | . . . . . . Repair Stations . | . . . . . . Recycling Units 6 | . . . . 6 . Scanalyzers . | . . . . . . Garrison Access . | . . . . . . Total Hacks 54 | . 10 1 1 15 27 Successful 42 | . 6 1 1 7 27 Failed 12 | . 4 . . 8 . Catastrophic 5 | . 2 . . 3 . Database Lockouts . | . . . . . . Manual 12 | . . . . 12 . Terminals 18 | . 10 . . 8 . Fabricators . | . . . . . . Repair Stations . | . . . . . . Recycling Units 7 | . . . . 7 . Scanalyzers . | . . . . . . Garrison Access . | . . . . . . Terminal Hacks 36 | . 6 1 1 1 27 Record 27 | . . . . . 27 Robot Analysis 1 | . 1 . . . . Prototype ID Bank 1 | . 1 . . . . Open Door 1 | . . 1 . . . Emergency Access Points 1 | . 1 . . . . Locate Traps 1 | . 1 . . . . Registered Components 2 | . 1 . . 1 . Zone Layout 1 | . 1 . . . . Proto ID Catalog 1 | . . . 1 . . Fabricator Hacks . | . . . . . . Repair Station Hacks . | . . . . . . Recycling Unit Hacks . | . . . . . . Scanalyzer . | . . . . . . Garrison Access Hacks . | . . . . . . Unauthorized Hacks 6 | . . . . 6 . Terminals . | . . . . . . Fabricators . | . . . . . . Repair Stations . | . . . . . . Recycling Units 6 | . . . . 6 . Tunnel 6 | . . . . 6 . Scanalyzers . | . . . . . . Garrison Access . | . . . . . . Data Cores Recovered . | . . . . . . Used . | . . . . . . Hacking Detections 8 | . 4 . . 4 . Full Trace Events . | . . . . . . Feedback Events . | . . . . . . Feedback Blocked . | . . . . . . Robot Schematics Acquired . | . . . . . . Robots Built . | . . . . . . Authchips . | . . . . . . Time . | . . . . . . Total Robot Build Rating . | . . . . . . Part Schematics Acquired . | . . . . . . Parts Built . | . . . . . . Authchips . | . . . . . . Time . | . . . . . . Total Part Build Rating . | . . . . . . Part Studies Acquired . | . . . . . . Parts Repaired . | . . . . . . Time . | . . . . . . Parts Recycled . | . . . . . . Recycled Matter . | . . . . . . Retrieved Matter . | . . . . . . Retrieved Components . | . . . . . . Parts Scanalyzed . | . . . . . . Part Schematics Acquired . | . . . . . . Parts Damaged . | . . . . . . Bothacking | -11 -10 -10 -10 -7 -7 ------------ Run | Yrd Mat Min Sub Rec Scr Used RIF Installer . | . . . . . . Robots Hacked . | . . . . . . Non-combat . | . . . . . . Combat . | . . . . . . Robot Hacks Applied . | . . . . . . Relay Couplers Released . | . . . . . . Fabnet Peak Effective % . | . . . . . . Robots Rewired . | . . . . . . Allies Hacked . | . . . . . . Hacks Repelled . | . . . . . . Allies | -11 -10 -10 -10 -7 -7 -------- Run | Yrd Mat Min Sub Rec Scr Total Allies 1 | . . 1 . . . Largest Group 1 | . . 1 . . . Highest-Rated Group 31 | . . 31 . . . Highest-Rated Ally 31 | . . 31 . . . Total Orders . | . . . . . . Ally Attacks 5 | . . 5 . . . Total Damage 84 | . . 84 . . . Kills 1 | . . 1 . . . Allies Corrupted . | . . . . . . Allies Melted 4 | . . . . . 4 Intel | -11 -10 -10 -10 -7 -7 ------- Run | Yrd Mat Min Sub Rec Scr Active Infowar (turns) 6510 | . 535 1113 1373 991 2498 Terrain 680 | . 535 145 . . . Structural 38 | . . . . . 38 Seismic 5830 | . . 968 1373 991 2498 Robot Analysis Total 1 | . 1 . . . . Derelict Logs Recovered 8 | . . 2 1 . 5 Drone Launches . | . . . . . . Drone Recoveries . | . . . . . . Exploration | -11 -10 -10 -10 -7 -7 ------------- Run | Yrd Mat Min Sub Rec Scr Turns Passed 7566 | 73 635 1115 2019 1001 2723 Spaces Moved 4688 | 49 364 685 1260 679 1651 Core 3 | 3 . . . . . Treads 345 | . 87 258 . . . Legs 317 | 40 277 . . . . Wheels 4023 | 6 . 427 1260 679 1651 Hover . | . . . . . . Flight . | . . . . . . Fastest Speed 50 | 50 120 135 135 130 90 Average Speed 136 | 110 129 144 138 141 132 Slowest Speed 195 | 120 160 160 195 145 160 Overloaded Moves . | . . . . . . Propulsion Burnouts . | . . . . . . Robots Hopped . | . . . . . . Potential Cave-ins . | . . . . . . Cave-ins Triggered . | . . . . . . Exploration Rate (%) 64 | 4 45 99 53 96 90 Regions Visited 5 Branch Regions 4 Pre-discovered Areas 13 | . . . 1 6 6 Known Exits Taken . | . . . . . . Unknown Exits Taken 5 | 1 1 1 1 1 . Scrap Searched 6 | . . 2 . . 4 Spaces Dug 1 | . . . . . 1 Terrain Destroyed 52 | . . . . 1 51 Melee 1 | . . . . . 1 Projectile 1 | . . . . 1 . AOE 50 | . . . . . 50 Terrain Rammed . | . . . . . . Walls Destroyed . | . . . . . . Machines Disabled . | . . . . . . Actions | -11 -10 -10 -10 -7 -7 --------- Run | Yrd Mat Min Sub Rec Scr Total 5554 | 64 457 763 1426 712 2132 Wait 460 | 1 26 36 37 7 353 Move 4683 | 48 363 684 1259 678 1651 Hop . | . . . . . . Pick Up 88 | 3 10 9 20 5 41 Fast Attach 20 | 9 3 2 1 1 4 Attach 14 | . 1 . 2 2 9 Detach 13 | 3 2 . 2 3 3 Swap 51 | . 3 7 25 6 10 Drop 62 | . 11 2 18 6 25 Fire 135 | . 38 22 40 4 31 Melee 27 | . . . 22 . 5 Ram . | . . . . . . Kick . | . . . . . . Crush . | . . . . . . Escape Stasis . | . . . . . . Rewire . | . . . . . . Trap 1 | . . 1 . . . Miscellaneous . | . . . . . . Route ------- -11/Scrapyard -10/Materials (discovered 2 exits: [*Mat] / *Min) -10/Mines (discovered 3 exits: [*Mat x2] / *Sub) -10/Subcaves (discovered 3 exits: [*Mat x2] / *Rec) -7/Recycling (discovered 2 exits: [*Fac] / *Scr) -7/Scraptown (discovered 1 exit: [*Fac]) History --------- Turn | Location | Event 7 | -11/Scrapyard | Discovered new exit (range 15) 74 | -11/Scrapyard | Entered Materials 309 | -10/Materials | Build established: Mutant 548 | -10/Materials | Discovered new exit (range 8) 574 | -10/Materials | Derelicts attacked the area 606 | -10/Materials | Discovered new exit (range 16) 709 | -10/Materials | Entered Mines 1160 | -10/Mines | Discovered new exit (range 16) 1164 | -10/Mines | Met a Derelict testing a Signal Generator 1165 | -10/Mines | Found a hidden stash of uninstalled traps 1196 | -10/Mines | Found Signal Generator 1249 | -10/Mines | Met a Derelict who couldn't figure out how to use a Trap Extractor 1592 | -10/Mines | Discovered new exit (range 5) 1692 | -10/Mines | Learned 2 Materials zone layouts 1715 | -10/Mines | Learned 8 Materials zone layouts 1816 | -10/Mines | Discovered new exit (range 7) 1824 | -10/Mines | Entered Subcaves 2012 | -10/Subcaves | Discovered new exit (range 14) 2026 | -10/Subcaves | Learned location of Storage (-7) 2702 | -10/Subcaves | Shifting Twisted Machinery released Sub. Monowheel 2712 | -10/Subcaves | Discovered new exit (range 11) 2713 | -10/Subcaves | Shifting Twisted Machinery released Scrap Shield 2907 | -10/Subcaves | Discovered new exit (range 15) 3384 | -10/Subcaves | Visited 4L-MR0's lab 3392 | -10/Subcaves | System corruption reached 10% 3412 | -10/Subcaves | Found Cargo Legs 3525 | -10/Subcaves | A swath of the cavern ceiling suddenly collapsed 3551 | -10/Subcaves | Build established: Scavenger-Mutant 3843 | -10/Subcaves | Entered Recycling 4200 | -7/Recycling | Build established: Mutant 4578 | -7/Recycling | Discovered new exit (range 16) 4814 | -7/Recycling | Scanned before Scraplab entrance 4832 | -7/Recycling | Entered Scraplab 4843 | -7/Recycling | Discovered new exit (range 2) 4844 | -7/Recycling | Entered Scraptown 4844 | -7/Scraptown | System corruption cleaned by C-Scrubber 4974 | -7/Scraptown | Scanned Subdweller tech in exchange for log data 4977 | -7/Scraptown | Learned Factory machine intel 4978 | -7/Scraptown | Learned location of Zion (-6) 4980 | -7/Scraptown | Learned Factory garrison access intel 4981 | -7/Scraptown | Learned location of Quarantine (-3) 4982 | -7/Scraptown | Learned Research interactive machine intel 5035 | -7/Scraptown | Discovered new exit (range 9) 5397 | -7/Scraptown | Visited TADAMA 5427 | -7/Scraptown | Visited Cyclists 5462 | -7/Scraptown | Visited Spacefarers 5517 | -7/Scraptown | Visited Awakened 5533 | -7/Scraptown | Visited Cave Peace 5566 | -7/Scraptown | Visited Comm Corps 5657 | -7/Scraptown | Visited IN-MT5's Study 5725 | -7/Scraptown | Visited UFD Registry 5728 | -7/Scraptown | Registered with UFD as "Mattersplitter" 5768 | -7/Scraptown | Visited Infowarlord's Domain 5796 | -7/Scraptown | Visited Chapter 10 5861 | -7/Scraptown | Visited DA-N13 Charitable Foundation 5869 | -7/Scraptown | Found DCF Scrap (30 items) 5924 | -7/Scraptown | Visited Junk Repository 5960 | -7/Scraptown | Visited Curators Association 6014 | -7/Scraptown | Visited Junk Repository 6051 | -7/Scraptown | Visited A0-MCA Data Center 6060 | -7/Scraptown | Given a C rating by A0-MCA 6066 | -7/Scraptown | Found A0-MCA's Component Scanner 6180 | -7/Scraptown | Delivered Scrap Shield to a Scientist 6475 | -7/Scraptown | Found Spectral Analyzer 6534 | -7/Scraptown | Visited Cartography Club 6592 | -7/Scraptown | Learned location of Proximity Caves (-3) 6592 | -7/Scraptown | Learned location of Warlord (-5) 6592 | -7/Scraptown | Learned 24 Factory zone layouts 6592 | -7/Scraptown | Learned 16 Research zone layouts 6592 | -7/Scraptown | Learned 8 Access zone layouts 6592 | -7/Scraptown | Learned 8 Lower Caves zone layouts 6592 | -7/Scraptown | Learned 8 Upper Caves zone layouts 6592 | -7/Scraptown | Learned location of 2 exits from Research 6592 | -7/Scraptown | Learned location of 3 exits from Upper Caves 6619 | -7/Scraptown | Found Deep Structural Scanner 6895 | -7/Scraptown | Met Optimus 6895 | -7/Scraptown | Accepted into 0bPrime 7295 | -7/Scraptown | Civil war broke out across Scraptown 7305 | -7/Scraptown | Found DM-GVY's Chainsaw 7316 | -7/Scraptown | Found Potential Leg 7328 | -7/Scraptown | Found Ballwheel 7347 | -7/Scraptown | Found MA-1KR's Cyclogen 7385 | -7/Scraptown | Core integrity fell below 50% 7503 | -7/Scraptown | Optimus destroyed in the chaos of civil war 7514 | -7/Scraptown | Lost 16 allies 7528 | -7/Scraptown | Lost 3 parts (1p2n) 7538 | -7/Scraptown | Core integrity fell below 20% 7563 | -7/Scraptown | Destroyed 8 combat bots 7567 | -7/Scraptown | Destroyed by 96-6II(j) with Overtuned Pulse Rifle Last Messages --------------- 07522_ The unstable cave ceiling collapses. 07534_ Mak. Shrapnel Gun destroyed. 07537_ Barrage Gun destroyed. 07538_ HL-5E0(j) destroyed. 07538_ KO-756(x) destroyed. 07538_ Med. Reactive Plating destroyed. 07538_ Destroyed Med. Reactive Plating. 07538_ Hvy. Missile Launcher destroyed. 07538_ Destroyed Hvy. Missile Launcher. 07538_ PI-SUJ(g) destroyed. 07542_ TA-HGK(p) destroyed. 07545_ Acquired 44 matter. 07547_ The unstable cave ceiling collapses. 07548_ Acquired 11 matter. 07549_ The unstable cave ceiling collapses. 07561_ Bolt penetrates Wall. 07561_ Bolt penetrates Machine. 07563_ The unstable cave ceiling collapses. 07563_ Scrap Suit crushed. 07564_ Bolt penetrates Wall. Map ----- +----------------------------------------------------+ | | | | | | | | | | | ?????????????????????????????????????????????????? | | ?????????????????????????????????????????????????? | | ?????????????????????????????????????????????????? | | ?????????????????????????????????????????????????? | | ?????????????????????????????????????????????????? | | ?????????????????????????????????????????????????? | | ?????????????????????????????????????????????????? | | ?????????????????????????????????????????????????? | | ?????????????????????????????????????????????????? | | ?????????????????????????????????????????????????? | | ?????????????????????????????????????????????????? | | ??????????????????????#??????????????????????????? | | ?????????????????????# #?????????????????????????? | | ????????????????????##"#?????????????????????????? | | ???????????????????## ##????????????????????????? | | ????????????????#### !!#????????????????????????? | | ?????????????????=!!!==== #####??????????? | | ??????????????????%*!![! #####??????????? | | ???????????????????#[%[!################?????????? | | ????????????????????#%=#################?????????? | | ???????????????????## !# @; # # #####?????????? | | ########??????????## %j ## # # ########?????????? | | """"""""??????????# = # ##### ####?????????? | | " ##????###### =!% == # # # ####?????????? | | " #???"""""" %* ### ## # ####?????????? | | " #?#"""" # # # # ####?????????? | | """ #?# " """ # # #X#### ####?????????? | | " " #?# """""" == ####=## ####?????????? | | """ #??" """ #%%[ # %! ####?????????? | | " #?#"" # ! ###%#########?????????? | | #### !* ! !!!=[ ####?????????? | | ##""""""""" !%=% **[== ####?????????? | | ### ######??### ## ==!!**#############?????????? | | ### ########### ## [ #############?????????? | | """ """"""""""" "" =!!= !"##" """"""###?????????? | | [ =!%=!=%! %##" " "" "###?????????? | | =!! %[[*/=*%[=%!"#?? " "" "#???????????? | | * %! !!!=*%![*!=!"#?" "#???????????? | | !*%=!%!%!!%=!"##" """"#???????????? | | = !!![%*%%*==! " "#???????????? | | """"""""""""" ""[""!!!= "##" " "" "#???????????? | | """""""""""""""""" ""=[! "#?" " "" ?????????????? | | # ################"" %/ #?? """"??????????????? | | ##????????#"" = "#########?????????????? | | X"#????????#" "##!=!* *#?????????????? | +----------------------------------------------------+ Best States ------------- Heat Dissipation 25 Energy Generation 16 Energy Capacity 290 Matter Stores 300 Matter Capacity 300 Sight Range 16 Terrain Scan Range 14 Terrain Scan Density 10 Armor Coverage 225 Resistance: KI 30 Evasion (%) 55 Recoil Reduction 2 Authchip Count 2 Item Schematics ----------------- None Robot Schematics ------------------ None Fabricated ------------ Nothing Repaired ---------- Nothing Studied --------- None Alien Tech Used ----------------- None Achievements -------------- None Challenges ------------ None Game ------ Seed ExplosiveFissionSuite Manual? 0 Play Time 01:07:18 Cumulative 384.2 hours Start 2026.02.05 @ 12:51:49 End 2026.02.05 @ 15:05:04 Sessions 3 Manual Loads 0 Difficulty Rogue Special Mode None Game No. 71 Rogue 71 Adventurer 0 Explorer 0 Win Type - Total 12 Types 5/1/3/1/0/0/1/1/0/0 Lore% 76 Gallery% 72 Achievement% 59 Wizard Run 0 Options --------- Layout 1 ASCII 0 Keyboard 1 Movement Vi Keybinds 1 Fullscreen 1 Font 36/Smallcaps Map View 50x40 Zoom Use 0% Tactical HUD 1 Map Filters NONE Filters NONE Steam 1 RUN: 31da591b-db33-4bf8-9d4a-5d49b90b02b2